fUST/lending_fUST_20240927
["ID","MTS","AMOUNT","RATE_DAILY","PERIOD"]
[339294417,1727441459358,-721.36,0.00021917,2]
[339294418,1727441459367,-721.36,0.00021917,2]
[339294419,1727441459376,-721.36,0.00021917,2]
[339294421,1727441459386,-721.36,0.00021917,2]
[339294423,1727441459395,-721.36,0.00021917,2]
[339294425,1727441459405,-721.36,0.00021917,2]
[339294427,1727441459415,-721.36,0.00021917,2]
[339294429,1727441459424,-721.36,0.00021917,2]
[339294431,1727441459433,-721.36,0.00021917,2]
[339294433,1727441459444,-721.36,0.00021917,2]
[339294435,1727441459454,-721.36,0.00021917,2]
[339294437,1727441459463,-721.46746821,0.00021917,2]
[339294439,1727441459473,-1326.72,0.00021917,2]
[339294441,1727441459483,-995.533767,0.00021917,2]
[339294443,1727441459493,-776.6,0.00021917,2]
[339294445,1727441459502,-995.533767,0.00021917,2]
[339294447,1727441459516,-501.84482045,0.00021917,2]
[339294449,1727441459525,-1000.0,0.00021917,5]
[339294451,1727441459534,-1000.0,0.00021917,5]
[339294453,1727441459544,-1000.0,0.00021917,5]
[339294455,1727441459554,-1000.0,0.00021917,5]
[339294457,1727441459564,-818.45250916,0.00021917,5]
[339294459,1727441459574,-151.0,0.00021917,2]
[339294461,1727441459584,-500.0,0.00021917,2]
[339294463,1727441459596,-151.0,0.00021917,2]
[339294465,1727441459606,-921.01,0.00021917,2]
[339294467,1727441459615,-151.0,0.00021917,2]
[339294469,1727441459624,-1083.43,0.00021917,2]
[339294471,1727441459634,-261.966027,0.00021917,2]
[339294473,1727441459643,-151.0,0.00021917,2]
[339294475,1727441459654,-261.966027,0.00021917,2]
[339294477,1727441459663,-190.479513,0.00021917,2]
[339294479,1727441459673,-500.0,0.00021917,2]
[339294481,1727441459682,-208.195853,0.00021917,2]
[339294483,1727441459692,-208.195853,0.00021917,2]
[339294485,1727441459702,-500.0,0.00021917,2]
[339294487,1727441459711,-509.13708894,0.00021917,2]
[339294489,1727441459721,-244.740292,0.00021917,2]
[339294491,1727441459731,-244.740292,0.00021917,2]
[339294493,1727441459740,-388.2669,0.00021917,2]
[339294495,1727441459750,-388.2669,0.00021917,2]
[339294497,1727441459759,-1149.73,0.00021917,2]
[339294499,1727441459769,-14444.41,0.00021917,2]
[339294501,1727441459779,-2715.76,0.00021917,2]
[339294503,1727441459788,-272.557229,0.00021917,2]
[339294505,1727441459798,-272.557235,0.00021917,2]
[339294507,1727441459807,-531.847437,0.00021917,2]
[339294509,1727441459817,-531.847437,0.00021917,2]
[339294511,1727441459827,-256.861246,0.00021917,2]
[339294513,1727441459837,-256.86124,0.00021917,2]
[339294515,1727441459846,-1819.967825,0.00021917,2]
[339294517,1727441459856,-1819.967832,0.00021917,2]
[339294519,1727441459866,-500.0,0.00021917,2]
[339294521,1727441459875,-525.2,0.00021917,2]
[339294523,1727441459885,-500.0,0.00021917,2]
[339294525,1727441459895,-563.574286,0.00021917,2]
[339294527,1727441459904,-563.574286,0.00021917,2]
[339294529,1727441459913,-500.0,0.00021917,2]
[339294531,1727441459923,-500.0,0.00021917,2]
[339294533,1727441459933,-1454.02,0.00021917,2]
[339294535,1727441459944,-500.0,0.00021917,2]
[339294537,1727441459954,-1870.68,0.00021917,2]
[339294539,1727441459963,-1597.88,0.00021917,2]
[339294541,1727441459972,-200.0,0.00021917,2]
[339294543,1727441459982,-207.94756929,0.00021918,2]
[339294545,1727441459991,-2500.0,0.00021918,2]
[339294547,1727441460001,-855.93172557,0.00021918,2]
[339294549,1727441460011,-676.436587,0.00021918,7]
[339294551,1727441460020,-676.436583,0.00021918,7]
[339294553,1727441460030,-476.006498,0.00021918,7]
[339294555,1727441460039,-476.006507,0.00021918,7]
[339294557,1727441460049,-584.856435,0.00021918,7]
[339294559,1727441460059,-584.856435,0.00021918,7]
[339294560,1727441460069,-2500.0,0.00021918,2]
[339294562,1727441460079,-151.0,0.0002192,7]
[339294564,1727441460089,-151.0,0.0002192,7]
[339294566,1727441460099,-243.417248,0.0002192,7]
[339294568,1727441460108,-756.903109,0.0002192,7]
[339294570,1727441460118,-756.903109,0.0002192,7]
[339294572,1727441460127,-698.115446,0.0002192,7]
[339294574,1727441460138,-698.115446,0.0002192,7]
[339294576,1727441460148,-151.0,0.0002192,7]
[339294578,1727441460159,-151.0,0.0002192,7]
[339294580,1727441460169,-845.154898,0.0002192,7]
[339294583,1727441460180,-845.154898,0.0002192,7]
[339294584,1727441460190,-376.13668,0.0002192,7]
[339294586,1727441460199,-376.13668,0.0002192,7]
[339294588,1727441460208,-163.95779533,0.0002192,7]
[339294590,1727441460219,-163.95779533,0.0002192,7]
[339294592,1727441460228,-163.95779533,0.0002192,7]
[339294594,1727441460238,-163.95779533,0.0002192,7]
[339294596,1727441460248,-163.95779533,0.0002192,7]
[339294598,1727441460257,-163.95779533,0.0002192,7]
[339294600,1727441460267,-163.95779533,0.0002192,7]
[339294602,1727441460276,-163.95779533,0.0002192,7]
[339294604,1727441460286,-163.95779533,0.0002192,7]
[339294606,1727441460296,-164.45,0.0002192,7]
[339294608,1727441460308,-327.99059066,0.0002192,7]
[339294610,1727441460319,-327.99059066,0.0002192,7]
[339294612,1727441460329,-327.99059066,0.0002192,7]
[339294614,1727441460338,-327.99059066,0.0002192,7]
[339294616,1727441460348,-327.99059066,0.0002192,7]
[339294618,1727441460357,-327.99059066,0.0002192,7]
[339294620,1727441460367,-327.99059066,0.0002192,7]
[339294622,1727441460377,-327.99059066,0.0002192,7]
[339294624,1727441460387,-327.99059066,0.0002192,7]
[339294626,1727441460396,-327.99059066,0.0002192,7]
[339294628,1727441460407,-327.99059066,0.0002192,7]
[339294630,1727441460417,-327.99059066,0.0002192,7]
[339294632,1727441460427,-327.99059066,0.0002192,7]
[339294634,1727441460437,-327.99059066,0.0002192,7]
[339294636,1727441460449,-327.99059066,0.0002192,7]
[339294638,1727441460459,-327.99059066,0.0002192,7]
[339294640,1727441460468,-327.99059066,0.0002192,7]
[339294642,1727441460477,-327.99059066,0.0002192,7]
[339294644,1727441460488,-327.99059066,0.0002192,7]
[339294646,1727441460498,-328.49,0.0002192,7]
[339294648,1727441460509,-187.32,0.0002192,7]
[339294650,1727441460520,-250.0,0.00021921,2]
[339294652,1727441460530,-495.0,0.00021941,2]
[339294654,1727441460539,-151.0,0.00021959,7]
[339294656,1727441460549,-151.0,0.00021959,7]
[339294658,1727441460559,-151.0,0.00021965,7]
[339294660,1727441460568,-495.0,0.00021968,2]
[339294662,1727441460578,-495.0,0.00021995,2]
[339294664,1727441460590,-7484.60014134,0.00022,30]
[339294666,1727441460600,-1314.53059825,0.00022,2]
[339294668,1727441460610,-151.0,0.00022,7]
[339294669,1727441460619,-151.0,0.00022,7]
[339294671,1727441460629,-383.901173,0.00022,7]
[339294673,1727441460638,-383.901173,0.00022,7]
[339294675,1727441460647,-151.0,0.00022,7]
[339294677,1727441460657,-252.199868,0.00022,7]
[339294679,1727441460666,-252.199868,0.00022,7]
[339294681,1727441460676,-151.0,0.00022,7]
[339294683,1727441460685,-161.866156,0.00022,7]
[339294685,1727441460696,-161.866156,0.00022,7]
[339294687,1727441460705,-225.103157,0.00022,7]
[339294689,1727441460714,-713.0,0.00022,2]
[339294691,1727441460724,-254.0,0.00022,2]
[339294693,1727441460733,-302.45563732,0.00022,2]
[339294695,1727441460743,-200.0,0.00022,2]
[339294697,1727441460753,-340.0,0.00022,2]
[339294699,1727441460762,-302.48582854,0.00022,2]
[339294701,1727441460772,-13341.16297495,0.0002201,16]
[339294703,1727441460781,-151.0,0.0002201,7]
[339294705,1727441460791,-2000.0,0.0002202,2]
[339294707,1727441460800,-2000.0,0.0002202,2]
[339294709,1727441460809,-495.0,0.00022023,2]
[339294711,1727441460820,-517.0,0.0002205,2]
[339294713,1727441460830,-153.0,0.00022067,2]
[339294715,1727441460839,-153.0,0.00022067,2]
[339294716,1727441460848,-153.0,0.00022067,2]
[339294718,1727441460857,-1370.7504737,0.0002207,120]
[339294720,1727441460866,-213.6,0.000221,31]
[339294722,1727441460875,-213.6,0.000221,31]
[339294724,1727441460885,-213.6,0.000221,31]
[339294726,1727441460894,-213.6,0.000221,31]
[339294728,1727441460903,-213.6,0.000221,31]
[339294730,1727441460914,-213.6,0.000221,31]
[339294741,1727441460923,-213.6,0.000221,31]
[339294743,1727441461023,-213.6,0.000221,31]
[339294745,1727441461033,-213.6,0.000221,31]
[339294747,1727441461043,-213.6,0.000221,31]
[339294749,1727441461053,-213.6,0.000221,31]
[339294751,1727441461062,-213.6,0.000221,31]
[339294753,1727441461072,-213.6,0.000221,31]
[339294755,1727441461082,-213.6,0.000221,31]
[339294757,1727441461092,-213.6,0.000221,31]
[339294759,1727441461102,-213.6,0.000221,31]
[339294761,1727441461111,-3212.243,0.00022109,2]
[339294763,1727441461120,-300.404,0.00022109,2]
[339294764,1727441461129,-158.801789,0.00022168,2]
[339294766,1727441461139,-165.636203,0.00022168,2]
[339294768,1727441461149,-151.0,0.00022175,2]
[339294770,1727441461158,-891.26,0.00022191,2]
[339294772,1727441461168,-500.0,0.00022191,2]
[339294774,1727441461177,-1119.92,0.00022191,2]
[339294776,1727441461187,-1326.72,0.00022191,2]
[339294778,1727441461199,-776.6,0.00022191,2]
[339294780,1727441461208,-500.0,0.00022191,2]
[339294782,1727441461218,-921.01,0.00022191,2]
[339294784,1727441461227,-1083.43,0.00022191,2]
[339294786,1727441461237,-500.0,0.00022191,2]
[339294788,1727441461247,-1149.73,0.00022191,2]
[339294790,1727441461258,-14444.41,0.00022191,2]
[339294792,1727441461267,-2715.76,0.00022191,2]
[339294794,1727441461277,-500.0,0.00022191,2]
[339294796,1727441461287,-525.2,0.00022191,2]
[339294798,1727441461297,-500.0,0.00022191,2]
[339294800,1727441461306,-1454.02,0.00022191,2]
[339294802,1727441461316,-500.0,0.00022191,2]
[339294804,1727441461326,-1870.68,0.00022191,2]
[339294806,1727441461336,-1597.88,0.00022191,2]
[339294808,1727441461345,-200.0,0.00022191,2]
[339294810,1727441461355,-713.0,0.00022192,2]
[339294812,1727441461364,-254.0,0.00022192,2]
[339294814,1727441461374,-340.0,0.00022192,2]
[339294816,1727441461383,-150.0,0.000222,2]
[339294818,1727441461393,-302.45563732,0.0002222,2]
[339294820,1727441461402,-302.48582854,0.0002222,2]
[339294822,1727441461411,-162.947673,0.00022259,2]
[339294824,1727441461422,-1320.25505481,0.000223,2]
[339294826,1727441461431,-152.79482226,0.00022373,2]
[339294828,1727441461441,-1000.0,0.00022422,2]
[339294830,1727441461451,-302.45563732,0.0002244,2]
[339294832,1727441461460,-302.48582854,0.0002244,2]
[339294834,1727441461470,-187.582943,0.00022441,2]
[339294836,1727441461480,-156.224196,0.00022441,2]
[339294838,1727441461489,-183.576417,0.00022441,2]
[339294840,1727441461499,-158.801789,0.00022441,2]
[339294842,1727441461511,-165.636203,0.00022441,2]
[339294844,1727441461522,-852.11361032,0.00022465,2]
[339295185,1727441464928,-39.14638968,0.00022465,2]
[339295187,1727441464938,-500.0,0.00022465,2]
[339295189,1727441464949,-1119.92,0.00022465,2]
[339295192,1727441464961,-1326.72,0.00022465,2]
[339295194,1727441464970,-776.6,0.00022465,2]
[339295195,1727441464979,-500.0,0.00022465,2]
[339295198,1727441464989,-921.01,0.00022465,2]
[339295199,1727441464998,-1083.43,0.00022465,2]
[339295201,1727441465008,-500.0,0.00022465,2]
[339295203,1727441465017,-1149.73,0.00022465,2]
[339295205,1727441465026,-14444.41,0.00022465,2]
[339295207,1727441465036,-2715.76,0.00022465,2]
[339295209,1727441465045,-178.20980002,0.00022465,2]
[339295211,1727441465054,-525.2,0.00022465,2]
[339295213,1727441465063,-500.0,0.00022465,2]
[339295215,1727441465074,-1454.02,0.00022465,2]
[339295217,1727441465083,-500.0,0.00022465,2]
[339295220,1727441465093,-1870.68,0.00022465,2]
[339295222,1727441465102,-1597.88,0.00022465,2]
[339295224,1727441465112,-200.0,0.00022465,2]
[339295226,1727441465121,-713.0,0.00022466,2]
[339295228,1727441465130,-202.20708315,0.00022468,2]
[339295230,1727441465140,-162.947673,0.00022624,2]
[339295232,1727441465149,-153.0,0.0002263,2]
[339295234,1727441465158,-151.0,0.00022646,2]
[339295236,1727441465167,-159.654839,0.00022657,2]
[339295237,1727441465176,-251.237439,0.00022657,2]
[339295239,1727441465185,-302.45563732,0.0002266,2]
[339295241,1727441465196,-302.48582854,0.0002266,2]
[339295243,1727441465214,-207.511894,0.00022715,7]
[339295245,1727441465223,-156.737,0.00022715,7]
[339295247,1727441465232,-158.801789,0.00022715,2]
[339295249,1727441465241,-165.636203,0.00022715,2]
[339295251,1727441465251,-891.26,0.00022739,2]
[339295253,1727441465260,-500.0,0.00022739,2]
[339295255,1727441465269,-1119.92,0.00022739,2]
[339295257,1727441465279,-1326.72,0.00022739,2]
[339295259,1727441465288,-776.6,0.00022739,2]
[339295262,1727441465298,-500.0,0.00022739,2]
[339295264,1727441465307,-151.0,0.00022739,7]
[339295265,1727441465316,-921.01,0.00022739,2]
[339295267,1727441465325,-1083.43,0.00022739,2]
[339295270,1727441465335,-500.0,0.00022739,2]
[339295271,1727441465344,-208.195853,0.00022739,7]
[339295274,1727441465354,-208.195853,0.00022739,7]
[339295275,1727441465364,-1149.73,0.00022739,2]
[339295278,1727441465374,-14444.41,0.00022739,2]
[339295280,1727441465383,-2715.76,0.00022739,2]
[339295282,1727441465392,-525.2,0.00022739,2]
[339295283,1727441465402,-500.0,0.00022739,2]
[339295285,1727441465411,-1454.02,0.00022739,2]
[339295287,1727441465420,-500.0,0.00022739,2]
[339295289,1727441465430,-1870.68,0.00022739,2]
[339295291,1727441465439,-1597.88,0.00022739,2]
[339295293,1727441465451,-200.0,0.00022739,2]
[339295295,1727441465460,-713.0,0.0002274,2]
[339295297,1727441465470,-1127.59326461,0.00022845,2]
[339295299,1727441465481,-244.740292,0.00022845,7]
[339295301,1727441465491,-244.740297,0.00022845,7]
[339295303,1727441465500,-388.2669,0.00022845,7]
[339295305,1727441465511,-388.266891,0.00022845,7]
[339295307,1727441465521,-531.847437,0.00022845,7]
[339295309,1727441465531,-531.847441,0.00022845,7]
[339295311,1727441465540,-563.574286,0.00022845,7]
[339295313,1727441465549,-563.574276,0.00022845,7]
[339295315,1727441465559,-238.37174,0.0002285,7]
[339295317,1727441465569,-419.524786,0.0002285,7]
[339295319,1727441465578,-419.524786,0.0002285,7]
[339295321,1727441465587,-995.533767,0.0002285,7]
[339295323,1727441465596,-995.533767,0.0002285,7]
[339295325,1727441465606,-185.30047,0.0002285,7]
[339295327,1727441465615,-2500.0,0.00022865,2]
[339295329,1727441465624,-2500.0,0.00022865,2]
[339295331,1727441465633,-302.45563732,0.0002288,2]
[339295333,1727441465643,-302.48582854,0.0002288,2]
[339295335,1727441465652,-1000.0,0.000229,2]
[339295337,1727441465661,-1152.0,0.00022952,2]
[339295338,1727441465671,-151.0,0.00022953,7]
[339295340,1727441465680,-432.683752,0.00022953,7]
[339295342,1727441465690,-432.683752,0.00022953,7]
[339295344,1727441465699,-151.0,0.00022953,7]
[339295346,1727441465708,-151.0,0.00022953,7]
[339295348,1727441465717,-163.615854,0.00022953,7]
[339295350,1727441465726,-151.0,0.00022953,7]
[339295352,1727441465735,-428.283914,0.00022953,7]
[339295354,1727441465744,-428.283914,0.00022953,7]
[339295356,1727441465753,-156.352677,0.00022989,2]
[339295358,1727441465762,-187.582943,0.00022989,2]
[339295360,1727441465771,-156.224196,0.00022989,2]
[339295362,1727441465780,-183.576417,0.00022989,2]
[339295364,1727441465789,-217.065365,0.00022989,2]
[339295366,1727441465798,-162.947673,0.00022989,2]
[339295368,1727441465807,-158.801789,0.00022989,2]
[339295369,1727441465816,-165.636203,0.00022989,2]
[339295371,1727441465825,-240.69202536,0.00023,2]
[339295373,1727441465834,-258454.45657327,0.00023,2]
[339299636,1727442555158,-204.55779337,0.00014643,2]
[339299666,1727442632461,-183.67108663,0.00014643,2]
[339299668,1727442632472,-249.818028,0.00014648,2]
[339299670,1727442632482,-249.818028,0.00014688,2]
[339299672,1727442632491,-249.818028,0.00014729,2]
[339299674,1727442632500,-249.818028,0.00014769,2]
[339299676,1727442632509,-509.0831859,0.00014785,2]
[339299678,1727442632519,-249.818028,0.00014809,2]
[339299680,1727442632528,-755.8810555,0.00014817,2]
[339299682,1727442632538,-249.818028,0.00014849,2]
[339299685,1727442632551,-4132.1531248,0.00014883,2]
[339299687,1727442632560,-249.818028,0.00014889,2]
[339299689,1727442632570,-249.818028,0.00014929,2]
[339299691,1727442632581,-249.818028,0.0001497,2]
[339299693,1727442632590,-249.818028,0.0001501,2]
[339299695,1727442632600,-249.818028,0.0001505,2]
[339299697,1727442632609,-180.322728,0.00015068,2]
[339299699,1727442632619,-249.818028,0.0001509,2]
[339299701,1727442632628,-249.818028,0.0001513,2]
[339299703,1727442632638,-249.818028,0.0001517,2]
[339299705,1727442632648,-249.818028,0.0001521,2]
[339299707,1727442632658,-249.818028,0.00015251,2]
[339299709,1727442632667,-300.0,0.0001529,2]
[339299711,1727442632677,-300.0,0.0001529,2]
[339299713,1727442632687,-249.818028,0.00015291,2]
[339299715,1727442632696,-388.22888,0.00015328,2]
[339299717,1727442632706,-249.818028,0.00015331,2]
[339299719,1727442632716,-249.818028,0.00015371,2]
[339299721,1727442632725,-249.818028,0.00015411,2]
[339299723,1727442632735,-180.322728,0.00015656,2]
[339299725,1727442632745,-157.91095603,0.000157,2]
[339299745,1727442632927,-157.91095603,0.000157,2]
[339299747,1727442632938,-157.91095603,0.00015716,2]
[339299749,1727442632951,-1298.42804154,0.00015767,2]
[339299751,1727442632961,-500.0,0.00015816,2]
[339299753,1727442632972,-500.0,0.00015816,2]
[339299755,1727442632982,-500.0,0.00015816,2]
[339299757,1727442632993,-500.0,0.00015816,2]
[339299759,1727442633003,-500.0,0.00015816,2]
[339299761,1727442633013,-500.0,0.00015816,2]
[339299763,1727442633023,-500.0,0.00015816,2]
[339299765,1727442633033,-500.0,0.00015816,2]
[339299767,1727442633044,-323.32561886,0.00015816,2]
[339299769,1727442633054,-353.76588782,0.00015816,2]
[339299771,1727442633063,-500.0,0.00015816,2]
[339299773,1727442633073,-500.0,0.00015816,2]
[339299775,1727442633084,-500.0,0.00015816,2]
[339299777,1727442633094,-500.0,0.00015816,2]
[339299779,1727442633103,-500.0,0.00015816,2]
[339299781,1727442633113,-500.0,0.00015816,2]
[339299783,1727442633123,-500.0,0.00015816,2]
[339299785,1727442633133,-500.0,0.00015816,2]
[339299787,1727442633142,-500.0,0.00015816,2]
[339299789,1727442633152,-423.58385588,0.00015816,2]
[339299791,1727442633162,-500.0,0.00015816,2]
[339299793,1727442633172,-500.0,0.00015816,2]
[339299796,1727442633182,-500.0,0.00015816,2]
[339299798,1727442633191,-500.0,0.00015816,2]
[339299799,1727442633201,-500.0,0.00015816,2]
[339299802,1727442633212,-500.0,0.00015816,2]
[339299804,1727442633221,-500.0,0.00015816,2]
[339299806,1727442633232,-500.0,0.00015816,2]
[339299808,1727442633242,-500.0,0.00015816,2]
[339299810,1727442633252,-500.0,0.00015816,2]
[339299812,1727442633261,-309.26644996,0.00015816,2]
[339299814,1727442633271,-500.0,0.00015816,2]
[339299816,1727442633281,-500.0,0.00015816,2]
[339299818,1727442633294,-500.0,0.00015816,2]
[339299820,1727442633304,-500.0,0.00015816,2]
[339299822,1727442633314,-500.0,0.00015816,2]
[339299824,1727442633324,-500.0,0.00015816,2]
[339299826,1727442633337,-500.0,0.00015816,2]
[339299828,1727442633351,-500.0,0.00015816,2]
[339299830,1727442633361,-500.0,0.00015816,2]
[339299832,1727442633371,-24900.0,0.00015818,2]
[339299834,1727442633381,-201.407339,0.00015842,2]
[339299836,1727442633392,-193.14018432,0.00015867,2]
[339299838,1727442633402,-408.82263893,0.00015967,2]
[339299840,1727442633412,-255.00573355,0.00015967,2]
[339299842,1727442633423,-574.46599544,0.00015967,2]
[339299844,1727442633433,-7717.5144095,0.00015967,2]
[339299846,1727442633443,-3000.0,0.00016,2]
[339299848,1727442633454,-3000.0,0.0001601,2]
[339299850,1727442633464,-388.22888,0.00016013,2]
[339299852,1727442633474,-3000.0,0.0001602,2]
[339299855,1727442633485,-3000.0,0.0001603,2]
[339299857,1727442633495,-1351.85183828,0.0001604,2]
[339300373,1727442638737,-254.50458428,0.00015967,2]
[339300375,1727442638747,-1648.14816172,0.0001604,2]
[339300377,1727442638757,-976.15702774,0.0001605,2]
[339300380,1727442638769,-2023.84297226,0.0001605,2]
[339300381,1727442638778,-697.72290255,0.0001606,2]
[339300394,1727442638899,-2302.27709745,0.0001606,2]
[339300396,1727442638908,-206.56152394,0.00016069,2]
[339300398,1727442638918,-500.0,0.00016069,2]
[339300400,1727442638927,-500.0,0.00016069,2]
[339300402,1727442638937,-293.29912387,0.00016069,2]
[339300404,1727442638946,-500.0,0.00016069,2]
[339300406,1727442638955,-500.0,0.00016069,2]
[339300408,1727442638966,-296.02574467,0.00016069,2]
[339300410,1727442638974,-338.4824476,0.00016069,2]
[339300411,1727442638983,-228.67573835,0.00016069,2]
[339300412,1727442638992,-500.0,0.00016069,2]
[339300414,1727442639001,-500.0,0.00016069,2]
[339300416,1727442639011,-500.0,0.00016069,2]
[339300418,1727442639020,-500.0,0.00016069,2]
[339300420,1727442639029,-500.0,0.00016069,2]
[339300422,1727442639039,-500.0,0.00016069,2]
[339300424,1727442639048,-3000.0,0.0001607,2]
[339300426,1727442639057,-3000.0,0.0001608,2]
[339300428,1727442639068,-1609.4484871,0.00016089,2]
[339300430,1727442639079,-3917.727366,0.0001609,2]
[339300432,1727442639090,-180.322728,0.00016244,2]
[339300434,1727442639099,-200.0,0.00016438,2]
[339300436,1727442639108,-420.0,0.00016729,2]
[339300438,1727442639119,-420.0,0.00016819,2]
[339300440,1727442639129,-180.322728,0.00016832,2]
[339300442,1727442639139,-160.453282,0.00016908,2]
[339300444,1727442639151,-160.453282,0.00016919,2]
[339300445,1727442639160,-160.453282,0.00016929,2]
[339300446,1727442639170,-160.453282,0.0001694,2]
[339300447,1727442639178,-160.453282,0.00016951,2]
[339300448,1727442639188,-160.453282,0.00016961,2]
[339300449,1727442639198,-160.453282,0.00016972,2]
[339300450,1727442639209,-160.453282,0.00016982,2]
[339300451,1727442639218,-160.453282,0.00016993,2]
[339300452,1727442639228,-587.0,0.00018304,2]
[339300453,1727442639237,-587.0,0.00018501,2]
[339300454,1727442639246,-21053.5060857,0.00018522,2]
[339300455,1727442639255,-7017.8353619,0.00018532,2]
[339300456,1727442639264,-93794.75816679,0.00018542,2]
[339300457,1727442639273,-164.062812,0.00018904,2]
[339300458,1727442639284,-3508.91768095,0.00019068,3]
[339300459,1727442639296,-3848.0,0.00019078,2]
[339300460,1727442639306,-3000.0,0.00019078,2]
[339300461,1727442639315,-10526.7530428,0.00019148,3]
[339300462,1727442639326,-10526.7530428,0.00019158,3]
[339300463,1727442639337,-3508.91768095,0.00019168,3]
[339300465,1727442639347,-151.0,0.00019178,2]
[339300467,1727442639357,-151.0,0.00019178,2]
[339300469,1727442639370,-506.8130447,0.00019178,2]
[339300470,1727442639380,-200.069123,0.00019178,2]
[339300472,1727442639390,-200.069123,0.00019178,2]
[339300474,1727442639399,-200.069123,0.00019178,2]
[339300476,1727442639408,-200.069123,0.00019178,2]
[339300478,1727442639417,-151.0,0.00019178,2]
[339300480,1727442639427,-151.0,0.00019178,2]
[339300482,1727442639436,-638.69610085,0.00019178,2]
[339300484,1727442639446,-591.76,0.00019178,2]
[339300486,1727442639456,-939.76,0.00019178,2]
[339300488,1727442639466,-500.0,0.00019178,2]
[339300490,1727442639476,-500.0,0.00019178,2]
[339300492,1727442639486,-500.0,0.00019178,2]
[339300494,1727442639495,-764.03,0.00019178,2]
[339300496,1727442639504,-942.5,0.00019178,2]
[339300498,1727442639514,-500.0,0.00019178,2]
[339300500,1727442639523,-500.0,0.00019178,2]
[339300502,1727442639532,-500.0,0.00019178,2]
[339300504,1727442639543,-500.0,0.00019178,2]
[339300506,1727442639553,-500.0,0.00019178,2]
[339300508,1727442639562,-355.65019265,0.00019178,2]
[339300510,1727442639571,-500.0,0.00019178,2]
[339300512,1727442639581,-500.0,0.00019178,2]
[339300514,1727442639591,-500.0,0.00019178,2]
[339300516,1727442639601,-500.0,0.00019178,2]
[339300518,1727442639611,-501.09186147,0.00019178,2]
[339300520,1727442639620,-500.0,0.00019178,2]
[339300522,1727442639629,-500.0,0.00019178,2]
[339300524,1727442639638,-886.6,0.00019178,2]
[339300526,1727442639648,-500.0,0.00019178,2]
[339300528,1727442639658,-500.0,0.00019178,2]
[339300530,1727442639667,-500.0,0.00019178,2]
[339300532,1727442639677,-500.0,0.00019178,2]
[339300534,1727442639687,-1211.69,0.00019178,2]
[339300536,1727442639698,-1624.79,0.00019178,2]
[339300538,1727442639709,-179.73,0.00019178,2]
[339300540,1727442639719,-200.0,0.00019178,2]
[339300541,1727442639728,-500.0,0.00019178,2]
[339300542,1727442639740,-220.80373621,0.00019178,2]
[339300543,1727442639750,-500.0,0.00019178,2]
[339300544,1727442639760,-531.73,0.00019178,2]
[339300545,1727442639771,-500.0,0.00019178,2]
[339300546,1727442639781,-500.0,0.00019178,2]
[339300547,1727442639791,-500.0,0.00019178,2]
[339300548,1727442639802,-500.0,0.00019178,2]
[339300549,1727442639813,-587.28,0.00019178,2]
[339300550,1727442639822,-505.23754177,0.00019178,2]
[339300551,1727442639834,-500.0,0.00019178,2]
[339300552,1727442639845,-500.0,0.00019178,2]
[339300553,1727442639856,-500.0,0.00019178,2]
[339300554,1727442639865,-500.0,0.00019178,2]